[Event "*** Titled Tuesday Blitz"]
[Site "Chess.com"]
[Date "2021.04.27"]
[Round "6"]
[White "nss13"]
[Black "noblerone"]
[Result "1/2-1/2"]
[WhiteElo "2536"]
[BlackElo "2394"]
[TimeControl "180+1"]
[EndTime "11:08:13 PDT"]
[Termination "Game drawn - insufficient material"]

1. e4 {[%clk 0:02:59.2]} 1... c5 {[%clk 0:02:59.5]} 2. Nf3 {[%clk 0:02:59]} 2...
e6 {[%clk 0:02:59.7]} 3. d4 {[%clk 0:02:59.1]} 3... cxd4 {[%clk 0:03:00.6]} 4.
Nxd4 {[%clk 0:02:59.9]} 4... Qb6 {[%clk 0:03:00.9]} 5. Nc3 {[%clk 0:02:58.8]}
5... Bc5 {[%clk 0:03:00.4]} 6. Na4 {[%clk 0:02:59.2]} 6... Qa5+ {[%clk
0:03:00.2]} 7. c3 {[%clk 0:02:59.8]} 7... Bxd4 {[%clk 0:02:59.3]} 8. Qxd4 {[%clk
0:03:00.7]} 8... Nf6 {[%clk 0:02:59.4]} 9. Nc5 {[%clk 0:02:59.3]} 9... Nc6
{[%clk 0:02:56.2]} 10. Qd6 {[%clk 0:02:58.5]} 10... b6 {[%clk 0:02:56.3]} 11.
Nb3 {[%clk 0:02:55.7]} 11... Qe5 {[%clk 0:02:55.2]} 12. Qxe5 {[%clk 0:02:55]}
12... Nxe5 {[%clk 0:02:56.1]} 13. f3 {[%clk 0:02:52]} 13... d5 {[%clk
0:02:45.8]} 14. exd5 {[%clk 0:02:50.8]} 14... Nxd5 {[%clk 0:02:45.4]} 15. Bd2
{[%clk 0:02:49.9]} 15... O-O {[%clk 0:02:37.7]} 16. Be2 {[%clk 0:02:45.3]} 16...
Bb7 {[%clk 0:02:28.5]} 17. f4 {[%clk 0:02:38.5]} 17... Ng6 {[%clk 0:02:13]} 18.
O-O {[%clk 0:02:36.5]} 18... Nf6 {[%clk 0:01:54]} 19. g3 {[%clk 0:02:14.2]}
19... Rad8 {[%clk 0:01:39.4]} 20. Rad1 {[%clk 0:02:14.3]} 20... Ne7 {[%clk
0:01:33.4]} 21. Bc1 {[%clk 0:02:02.6]} 21... Nf5 {[%clk 0:01:25.3]} 22. Rxd8
{[%clk 0:01:44.9]} 22... Rxd8 {[%clk 0:01:25.1]} 23. Rd1 {[%clk 0:01:45.8]}
23... Rxd1+ {[%clk 0:01:25.2]} 24. Bxd1 {[%clk 0:01:46.7]} 24... Kf8 {[%clk
0:01:20]} 25. Bc2 {[%clk 0:01:25.3]} 25... Nd6 {[%clk 0:01:16]} 26. Nd4 {[%clk
0:01:24]} 26... h6 {[%clk 0:01:10.4]} 27. b3 {[%clk 0:01:18.6]} 27... Ke8 {[%clk
0:01:04.3]} 28. c4 {[%clk 0:01:18.9]} 28... Be4 {[%clk 0:00:59.7]} 29. Bd1
{[%clk 0:01:17.7]} 29... Kd7 {[%clk 0:00:52.3]} 30. Be3 {[%clk 0:01:16.4]} 30...
Nfe8 {[%clk 0:00:30.3]} 31. Nf3 {[%clk 0:00:59.7]} 31... f6 {[%clk 0:00:27.8]}
32. Bd4 {[%clk 0:00:54.1]} 32... Nf5 {[%clk 0:00:25.7]} 33. Bc3 {[%clk
0:00:46.9]} 33... Ned6 {[%clk 0:00:23.8]} 34. Kf2 {[%clk 0:00:44.3]} 34... Bb1
{[%clk 0:00:23.2]} 35. Nd2 {[%clk 0:00:38.5]} 35... Bxa2 {[%clk 0:00:19.4]} 36.
Bc2 {[%clk 0:00:38.8]} 36... a5 {[%clk 0:00:18]} 37. Bd3 {[%clk 0:00:27.2]}
37... Ne7 {[%clk 0:00:16.4]} 38. Ke2 {[%clk 0:00:23.8]} 38... Nb7 {[%clk
0:00:16.9]} 39. Kd1 {[%clk 0:00:21.9]} 39... Nc6 {[%clk 0:00:13.5]} 40. Kc2
{[%clk 0:00:20.5]} 40... a4 {[%clk 0:00:11.4]} 41. bxa4 {[%clk 0:00:18.8]} 41...
Nc5 {[%clk 0:00:12]} 42. a5 {[%clk 0:00:16.2]} 42... bxa5 {[%clk 0:00:11.1]} 43.
Be2 {[%clk 0:00:15.4]} 43... a4 {[%clk 0:00:11]} 44. Kb2 {[%clk 0:00:15.4]}
44... Bb3 {[%clk 0:00:11.9]} 45. Nxb3 {[%clk 0:00:15.5]} 45... Nxb3 {[%clk
0:00:11.7]} 46. Ka3 {[%clk 0:00:11.6]} 46... Nc5 {[%clk 0:00:11.8]} 47. Bb4
{[%clk 0:00:09.8]} 47... Nxb4 {[%clk 0:00:11.5]} 48. Kxb4 {[%clk 0:00:10.7]}
48... Kd6 {[%clk 0:00:11.6]} 49. Bd1 {[%clk 0:00:08.6]} 49... e5 {[%clk
0:00:11.8]} 50. fxe5+ {[%clk 0:00:07.1]} 50... fxe5 {[%clk 0:00:12.2]} 51. Bxa4
{[%clk 0:00:07.7]} 51... Ne4 {[%clk 0:00:10.3]} 52. Bc2 {[%clk 0:00:07.3]} 52...
Nc5 {[%clk 0:00:10.1]} 53. Kc3 {[%clk 0:00:05.7]} 53... Ne6 {[%clk 0:00:10.4]}
54. Be4 {[%clk 0:00:03.3]} 54... Kc5 {[%clk 0:00:10.6]} 55. Bd5 {[%clk
0:00:03.9]} 55... Nc7 {[%clk 0:00:10.7]} 56. Bf7 {[%clk 0:00:03.3]} 56... Na8
{[%clk 0:00:10.2]} 57. Kd3 {[%clk 0:00:03.5]} 57... Nb6 {[%clk 0:00:10.8]} 58.
Ke4 {[%clk 0:00:03.8]} 58... Kd6 {[%clk 0:00:10.8]} 59. c5+ {[%clk 0:00:03.9]}
59... Kxc5 {[%clk 0:00:11.4]} 60. Kxe5 {[%clk 0:00:04.8]} 60... Kc6 {[%clk
0:00:10.9]} 61. Kf5 {[%clk 0:00:04.2]} 61... Kd6 {[%clk 0:00:11.3]} 62. Kg6
{[%clk 0:00:04.7]} 62... Ke7 {[%clk 0:00:11.6]} 63. Kxg7 {[%clk 0:00:05]} 63...
Nd7 {[%clk 0:00:11.1]} 64. Ba2 {[%clk 0:00:03.6]} 64... Nf6 {[%clk 0:00:10.2]}
65. Kxh6 {[%clk 0:00:03.7]} 65... Ng4+ {[%clk 0:00:10.7]} 66. Kg7 {[%clk
0:00:04.3]} 66... Nxh2 {[%clk 0:00:11.6]} 67. Bc4 {[%clk 0:00:04.2]} 67... Kd6
{[%clk 0:00:11.5]} 68. Be2 {[%clk 0:00:04.8]} 68... Ke5 {[%clk 0:00:11.9]} 69.
Kg6 {[%clk 0:00:05.3]} 69... Ke4 {[%clk 0:00:12.1]} 70. Kg5 {[%clk 0:00:05.9]}
70... Ke3 {[%clk 0:00:12.6]} 71. Bh5 {[%clk 0:00:05]} 71... Kf2 {[%clk
0:00:12.9]} 72. Kh4 {[%clk 0:00:05.5]} 72... Ke3 {[%clk 0:00:12.1]} 73. Kh3
{[%clk 0:00:05.2]} 73... Nf1 {[%clk 0:00:12.3]} 74. g4 {[%clk 0:00:05.6]} 74...
Kf4 {[%clk 0:00:12.9]} 75. Kh4 {[%clk 0:00:05.9]} 75... Ng3 {[%clk 0:00:13.1]}
76. g5 {[%clk 0:00:06.8]} 76... Nf5+ {[%clk 0:00:13.6]} 77. Kh3 {[%clk
0:00:06.8]} 77... Kxg5 {[%clk 0:00:14.5]} 1/2-1/2

[Event "*** Titled Tuesday Blitz"]
[Site "Chess.com"]
[Date "2021.04.27"]
[Round "6"]
[White "profofchess"]
[Black "maximych26"]
[Result "1-0"]
[WhiteElo "2485"]
[BlackElo "2302"]
[TimeControl "180+1"]
[EndTime "11:08:18 PDT"]
[Termination "profofchess won by checkmate"]

1. e4 {[%clk 0:03:00.9]} 1... c6 {[%clk 0:02:58.6]} 2. Nf3 {[%clk 0:03:00.5]}
2... d5 {[%clk 0:02:59.1]} 3. Nc3 {[%clk 0:03:00.9]} 3... dxe4 {[%clk 0:02:59]}
4. Nxe4 {[%clk 0:03:00.5]} 4... Nf6 {[%clk 0:02:59.8]} 5. Qe2 {[%clk 0:03:00.1]}
5... Nxe4 {[%clk 0:02:57.9]} 6. Qxe4 {[%clk 0:03:01]} 6... Qd5 {[%clk
0:02:57.8]} 7. Qf4 {[%clk 0:03:01]} 7... Qf5 {[%clk 0:02:53.4]} 8. Qe3 {[%clk
0:03:00.7]} 8... e6 {[%clk 0:02:46.2]} 9. Bd3 {[%clk 0:02:54]} 9... Qc5 {[%clk
0:02:45.2]} 10. O-O {[%clk 0:02:50.4]} 10... Qxe3 {[%clk 0:02:42.7]} 11. fxe3
{[%clk 0:02:51.3]} 11... f6 {[%clk 0:02:39.5]} 12. b3 {[%clk 0:02:48.2]} 12...
Bc5 {[%clk 0:02:37.6]} 13. Bb2 {[%clk 0:02:46.5]} 13... O-O {[%clk 0:02:34.9]}
14. Nd4 {[%clk 0:02:21.1]} 14... Bb4 {[%clk 0:02:14.9]} 15. Rf2 {[%clk
0:02:11.1]} 15... e5 {[%clk 0:02:02.6]} 16. Bc4+ {[%clk 0:02:06.8]} 16... Kh8
{[%clk 0:02:01.7]} 17. Ne6 {[%clk 0:02:07.7]} 17... Bxe6 {[%clk 0:02:00.6]} 18.
Bxe6 {[%clk 0:02:07.4]} 18... Na6 {[%clk 0:02:00.6]} 19. a3 {[%clk 0:02:04.3]}
19... Nc7 {[%clk 0:01:54.8]} 20. Bc4 {[%clk 0:02:02.1]} 20... Bd6 {[%clk
0:01:53.2]} 21. a4 {[%clk 0:01:44.3]} 21... a5 {[%clk 0:01:50.5]} 22. Raf1
{[%clk 0:01:30.6]} 22... Nd5 {[%clk 0:01:48.5]} 23. e4 {[%clk 0:01:01.2]} 23...
Nb6 {[%clk 0:01:43.3]} 24. Kh1 {[%clk 0:00:55.4]} 24... Rfd8 {[%clk 0:01:41]}
25. Be6 {[%clk 0:00:51.6]} 25... Bc5 {[%clk 0:01:32.2]} 26. Re2 {[%clk
0:00:51.6]} 26... Bd4 {[%clk 0:01:30.8]} 27. c3 {[%clk 0:00:50.1]} 27... Bc5
{[%clk 0:01:30.6]} 28. Bc1 {[%clk 0:00:22.6]} 28... Rd6 {[%clk 0:01:28.6]} 29.
Bg4 {[%clk 0:00:21.3]} 29... Rdd8 {[%clk 0:01:27.7]} 30. g3 {[%clk 0:00:20.6]}
30... Be7 {[%clk 0:01:23.3]} 31. Rg2 {[%clk 0:00:19.9]} 31... Nd7 {[%clk
0:01:18.8]} 32. d4 {[%clk 0:00:15.9]} 32... Bd6 {[%clk 0:01:13]} 33. Bd1 {[%clk
0:00:12.9]} 33... Nb6 {[%clk 0:01:10.7]} 34. Bc2 {[%clk 0:00:12.1]} 34... Bc7
{[%clk 0:01:08.1]} 35. Be3 {[%clk 0:00:11.2]} 35... Nc8 {[%clk 0:00:59.9]} 36.
g4 {[%clk 0:00:10.8]} 36... Ne7 {[%clk 0:00:46.6]} 37. g5 {[%clk 0:00:10.2]}
37... Rf8 {[%clk 0:00:44.1]} 38. gxf6 {[%clk 0:00:09.6]} 38... Rxf6 {[%clk
0:00:41.4]} 39. Rxf6 {[%clk 0:00:08.1]} 39... gxf6 {[%clk 0:00:41]} 40. Kg1
{[%clk 0:00:06.2]} 40... Rg8 {[%clk 0:00:39.5]} 41. Rxg8+ {[%clk 0:00:05.3]}
41... Kxg8 {[%clk 0:00:39]} 42. Kf2 {[%clk 0:00:05.3]} 42... Kf7 {[%clk
0:00:37.7]} 43. Kf3 {[%clk 0:00:05.6]} 43... Ng6 {[%clk 0:00:35.8]} 44. d5
{[%clk 0:00:04]} 44... Ne7 {[%clk 0:00:33.7]} 45. c4 {[%clk 0:00:03.7]} 45...
Nc8 {[%clk 0:00:31.3]} 46. Bd2 {[%clk 0:00:04]} 46... Ke7 {[%clk 0:00:28.9]} 47.
h4 {[%clk 0:00:04.1]} 47... Nd6 {[%clk 0:00:26.1]} 48. c5 {[%clk 0:00:03.9]}
48... Nc8 {[%clk 0:00:19.5]} 49. d6+ {[%clk 0:00:04.3]} 49... Nxd6 {[%clk
0:00:19.1]} 50. cxd6+ {[%clk 0:00:05.2]} 50... Kxd6 {[%clk 0:00:19.5]} 51. Bd3
{[%clk 0:00:05.4]} 51... b6 {[%clk 0:00:18.4]} 52. Kg4 {[%clk 0:00:05.3]} 52...
Ke6 {[%clk 0:00:16.8]} 53. Bc4+ {[%clk 0:00:05.6]} 53... Ke7 {[%clk 0:00:16.6]}
54. Kf5 {[%clk 0:00:06.3]} 54... Bd8 {[%clk 0:00:15.6]} 55. Be3 {[%clk
0:00:06.5]} 55... Bc7 {[%clk 0:00:12.4]} 56. h5 {[%clk 0:00:06.9]} 56... Bd8
{[%clk 0:00:12.5]} 57. h6 {[%clk 0:00:07.3]} 57... Bc7 {[%clk 0:00:12.2]} 58.
Bg8 {[%clk 0:00:07.4]} 58... Kf8 {[%clk 0:00:11.9]} 59. Bxh7 {[%clk 0:00:07.3]}
59... Kf7 {[%clk 0:00:12.5]} 60. Bg6+ {[%clk 0:00:07.4]} 60... Kg8 {[%clk
0:00:12.5]} 61. Kxf6 {[%clk 0:00:07.2]} 61... b5 {[%clk 0:00:12.7]} 62. axb5
{[%clk 0:00:06.8]} 62... cxb5 {[%clk 0:00:12.9]} 63. Bc5 {[%clk 0:00:07]} 63...
a4 {[%clk 0:00:13]} 64. bxa4 {[%clk 0:00:06.7]} 64... bxa4 {[%clk 0:00:11.8]}
65. Ba3 {[%clk 0:00:07.2]} 65... Bb8 {[%clk 0:00:11]} 66. Ke6 {[%clk 0:00:06.7]}
66... Bc7 {[%clk 0:00:11]} 67. Kd7 {[%clk 0:00:06.3]} 67... Bb8 {[%clk
0:00:10.6]} 68. Kc6 {[%clk 0:00:06.5]} 68... Ba7 {[%clk 0:00:08.1]} 69. Kb5
{[%clk 0:00:06]} 69... Bd4 {[%clk 0:00:08]} 70. Kxa4 {[%clk 0:00:05.6]} 70...
Be3 {[%clk 0:00:07.4]} 71. h7+ {[%clk 0:00:05.5]} 71... Kg7 {[%clk 0:00:07.7]}
72. Bf5 {[%clk 0:00:06.4]} 72... Bb6 {[%clk 0:00:06.6]} 73. Kb5 {[%clk
0:00:06.8]} 73... Bd8 {[%clk 0:00:06.4]} 74. Kc6 {[%clk 0:00:07.1]} 74... Bf6
{[%clk 0:00:07]} 75. Kd5 {[%clk 0:00:07.3]} 75... Kh6 {[%clk 0:00:06.4]} 76. Bb2
{[%clk 0:00:07.2]} 76... Bg7 {[%clk 0:00:06.4]} 77. Bxe5 {[%clk 0:00:06.4]}
77... Bf6 {[%clk 0:00:06]} 78. Bxf6 {[%clk 0:00:05.6]} 78... Kh5 {[%clk
0:00:05.9]} 79. h8=Q# {[%clk 0:00:05.6]} 1-0

[Event "*** Titled Tuesday Blitz"]
[Site "Chess.com"]
[Date "2021.04.27"]
[Round "6"]
[White "Darius321"]
[Black "Vladyslav_Puchka"]
[Result "1-0"]
[WhiteElo "2295"]
[BlackElo "2108"]
[TimeControl "180+1"]
[EndTime "11:08:25 PDT"]
[Termination "Darius321 won by resignation"]

1. e4 {[%clk 0:03:00.9]} 1... d5 {[%clk 0:02:59.2]} 2. exd5 {[%clk 0:02:55.6]}
2... Qxd5 {[%clk 0:03:00.1]} 3. Nc3 {[%clk 0:02:54.1]} 3... Qd8 {[%clk
0:02:59.9]} 4. Bc4 {[%clk 0:02:53.6]} 4... Nf6 {[%clk 0:03:00.1]} 5. Nf3 {[%clk
0:02:52.7]} 5... e6 {[%clk 0:03:00.3]} 6. O-O {[%clk 0:02:51.4]} 6... a6 {[%clk
0:03:00.4]} 7. d4 {[%clk 0:02:51.8]} 7... b5 {[%clk 0:02:58.3]} 8. Bb3 {[%clk
0:02:50.5]} 8... c5 {[%clk 0:02:53.8]} 9. dxc5 {[%clk 0:02:49.7]} 9... Qxd1
{[%clk 0:02:52.1]} 10. Rxd1 {[%clk 0:02:50.3]} 10... Bb7 {[%clk 0:02:52.4]} 11.
Be3 {[%clk 0:02:47.8]} 11... Nbd7 {[%clk 0:02:48.7]} 12. a4 {[%clk 0:02:46.3]}
12... b4 {[%clk 0:02:47.3]} 13. Ne2 {[%clk 0:02:34.8]} 13... Bxf3 {[%clk
0:02:41.8]} 14. gxf3 {[%clk 0:02:33.7]} 14... Bxc5 {[%clk 0:02:41.9]} 15. Bxc5
{[%clk 0:02:33.2]} 15... Nxc5 {[%clk 0:02:42.7]} 16. Bc4 {[%clk 0:02:33.4]}
16... O-O {[%clk 0:02:38.8]} 17. Rd6 {[%clk 0:02:26.4]} 17... a5 {[%clk
0:02:29.9]} 18. b3 {[%clk 0:02:20.4]} 18... Rfd8 {[%clk 0:02:27.9]} 19. Rad1
{[%clk 0:02:19.5]} 19... Nb7 {[%clk 0:02:16.1]} 20. Rxd8+ {[%clk 0:02:07.2]}
20... Rxd8 {[%clk 0:02:15.8]} 21. Rxd8+ {[%clk 0:02:07.1]} 21... Nxd8 {[%clk
0:02:16.7]} 22. c3 {[%clk 0:02:07.3]} 22... Nc6 {[%clk 0:02:09.6]} 23. Bb5
{[%clk 0:02:02.8]} 23... Na7 {[%clk 0:01:57.5]} 24. cxb4 {[%clk 0:02:01.4]}
24... axb4 {[%clk 0:01:54.5]} 25. Nd4 {[%clk 0:01:56.4]} 25... Nd5 {[%clk
0:01:45]} 26. Bc4 {[%clk 0:01:48]} 26... Kf8 {[%clk 0:01:05]} 27. Kf1 {[%clk
0:01:46.7]} 27... Ke7 {[%clk 0:01:04]} 28. Ke2 {[%clk 0:01:46.7]} 28... Kd6
{[%clk 0:01:02.1]} 29. Kd3 {[%clk 0:01:40.5]} 29... Kc5 {[%clk 0:00:59.1]} 30.
Nc2 {[%clk 0:01:20.2]} 30... Nf4+ {[%clk 0:00:50.5]} 31. Ke4 {[%clk 0:01:18.8]}
31... Ng6 {[%clk 0:00:49.3]} 32. Ne1 {[%clk 0:01:09.4]} 32... Nc6 {[%clk
0:00:35.8]} 33. Nd3+ {[%clk 0:01:08.4]} 33... Kb6 {[%clk 0:00:35.2]} 34. f4
{[%clk 0:01:08.3]} 34... Nge7 {[%clk 0:00:33]} 35. Bb5 {[%clk 0:01:00.7]} 35...
h6 {[%clk 0:00:19.6]} 36. Bxc6 {[%clk 0:00:46.8]} 36... Nxc6 {[%clk 0:00:20.5]}
37. Ne5 {[%clk 0:00:46.9]} 37... Na5 {[%clk 0:00:18.5]} 38. Nd3 {[%clk 0:00:40]}
38... Nxb3 {[%clk 0:00:18.3]} 39. Nxb4 {[%clk 0:00:40.1]} 39... Nc5+ {[%clk
0:00:18.3]} 40. Ke5 {[%clk 0:00:37.6]} 40... Nxa4 {[%clk 0:00:18.6]} 41. Kd6
{[%clk 0:00:35.8]} 41... Nc3 {[%clk 0:00:18.5]} 42. Ke7 {[%clk 0:00:34.9]} 42...
Nd5+ {[%clk 0:00:18.9]} 43. Kxf7 {[%clk 0:00:28.3]} 43... Nxf4 {[%clk
0:00:18.9]} 44. Kxg7 {[%clk 0:00:26]} 44... h5 {[%clk 0:00:19.5]} 45. Kf6 {[%clk
0:00:24.8]} 45... h4 {[%clk 0:00:18.5]} 46. Kg5 {[%clk 0:00:23.5]} 46... Nh3+
{[%clk 0:00:18.9]} 47. Kxh4 {[%clk 0:00:23]} 47... Nxf2 {[%clk 0:00:19.5]} 48.
Kg3 {[%clk 0:00:22.8]} 48... Ne4+ {[%clk 0:00:19.8]} 49. Kf4 {[%clk 0:00:22.3]}
49... Nf2 {[%clk 0:00:19.9]} 50. h4 {[%clk 0:00:21.9]} 50... Kc5 {[%clk
0:00:20.5]} 51. h5 {[%clk 0:00:20.7]} 51... Nh3+ {[%clk 0:00:20.7]} 52. Kg4
{[%clk 0:00:19.7]} 52... Nf2+ {[%clk 0:00:21]} 53. Kf3 {[%clk 0:00:18.6]} 53...
Nh3 {[%clk 0:00:21.3]} 54. Kg4 {[%clk 0:00:16.9]} 54... Nf2+ {[%clk 0:00:21.4]}
55. Kh4 {[%clk 0:00:16.9]} 55... Ne4 {[%clk 0:00:20.8]} 56. h6 {[%clk
0:00:14.8]} 56... Nf6 {[%clk 0:00:20.8]} 57. Nd3+ {[%clk 0:00:14.3]} 57... Kd4
{[%clk 0:00:20.8]} 58. Kg5 {[%clk 0:00:14.2]} 58... Nh7+ {[%clk 0:00:18.7]} 59.
Kg6 {[%clk 0:00:14.2]} 59... Nf8+ {[%clk 0:00:19]} 60. Kg7 {[%clk 0:00:14.1]}
60... Kxd3 {[%clk 0:00:16.9]} 61. Kxf8 {[%clk 0:00:13.4]} 61... e5 {[%clk
0:00:17.6]} 62. h7 {[%clk 0:00:13.8]} 62... e4 {[%clk 0:00:18.3]} 63. h8=Q
{[%clk 0:00:14]} 63... e3 {[%clk 0:00:19.1]} 64. Qh3 {[%clk 0:00:12.6]} 64...
Kd2 {[%clk 0:00:19.5]} 65. Qd7+ {[%clk 0:00:11]} 65... Ke1 {[%clk 0:00:19.4]}
66. Qd3 {[%clk 0:00:10.2]} 66... e2 {[%clk 0:00:19.8]} 67. Ke7 {[%clk
0:00:09.5]} 67... Kf2 {[%clk 0:00:20.4]} 68. Qf5+ {[%clk 0:00:08.9]} 68... Kg1
{[%clk 0:00:20]} 69. Qe4 {[%clk 0:00:08.3]} 69... Kf2 {[%clk 0:00:20.1]} 70.
Qf4+ {[%clk 0:00:08.5]} 70... Kg1 {[%clk 0:00:20.1]} 71. Qe3+ {[%clk 0:00:08.4]}
71... Kf1 {[%clk 0:00:20.7]} 72. Qf3+ {[%clk 0:00:08.4]} 72... Ke1 {[%clk
0:00:21.3]} 73. Ke6 {[%clk 0:00:09.1]} 73... Kd2 {[%clk 0:00:21.9]} 74. Qf2
{[%clk 0:00:09.2]} 74... Kd1 {[%clk 0:00:20.9]} 75. Qd4+ {[%clk 0:00:09]} 75...
Kc2 {[%clk 0:00:19.5]} 76. Qe3 {[%clk 0:00:08.8]} 76... Kd1 {[%clk 0:00:20]} 77.
Qd3+ {[%clk 0:00:09.1]} 77... Ke1 {[%clk 0:00:20.6]} 78. Ke5 {[%clk 0:00:09.3]}
78... Kf2 {[%clk 0:00:21.4]} 79. Qd2 {[%clk 0:00:09.2]} 79... Kf1 {[%clk
0:00:20.3]} 80. Qf4+ {[%clk 0:00:08.2]} 80... Kg1 {[%clk 0:00:19.8]} 81. Qe3+
{[%clk 0:00:07.1]} 81... Kf1 {[%clk 0:00:20.4]} 82. Qf3+ {[%clk 0:00:07.1]}
82... Ke1 {[%clk 0:00:20.1]} 83. Ke4 {[%clk 0:00:07.1]} 83... Kd1 {[%clk
0:00:20.9]} 84. Ke3 {[%clk 0:00:05.3]} 1-0

[Event "*** Titled Tuesday Blitz"]
[Site "Chess.com"]
[Date "2021.04.27"]
[Round "6"]
[White "paulrusan"]
[Black "Abdimalik_Abdisalimov"]
[Result "0-1"]
[WhiteElo "2220"]
[BlackElo "2331"]
[TimeControl "180+1"]
[EndTime "11:08:26 PDT"]
[Termination "Abdimalik_Abdisalimov won on time"]

1. e4 {[%clk 0:02:59.9]} 1... e5 {[%clk 0:02:59.9]} 2. Nf3 {[%clk 0:02:54.3]}
2... Nc6 {[%clk 0:02:59.5]} 3. Bc4 {[%clk 0:02:28.4]} 3... Nf6 {[%clk
0:02:58.1]} 4. d3 {[%clk 0:02:20]} 4... Bc5 {[%clk 0:02:56.1]} 5. O-O {[%clk
0:02:18.7]} 5... O-O {[%clk 0:02:53.2]} 6. c3 {[%clk 0:02:08.2]} 6... d6 {[%clk
0:02:53.1]} 7. Bb3 {[%clk 0:02:01.5]} 7... Bb6 {[%clk 0:02:44.5]} 8. h3 {[%clk
0:01:53.4]} 8... Ne7 {[%clk 0:02:42.6]} 9. Nh4 {[%clk 0:01:46.9]} 9... Ng6
{[%clk 0:02:40.9]} 10. Nxg6 {[%clk 0:01:44.4]} 10... hxg6 {[%clk 0:02:40.2]} 11.
Bg5 {[%clk 0:01:45.2]} 11... Qe8 {[%clk 0:02:36.5]} 12. Nd2 {[%clk 0:01:42.5]}
12... Be6 {[%clk 0:02:36.4]} 13. Nc4 {[%clk 0:01:42]} 13... Qd7 {[%clk 0:02:26]}
14. Qf3 {[%clk 0:01:35.5]} 14... Nh7 {[%clk 0:02:19.4]} 15. Be3 {[%clk
0:01:32.5]} 15... Bxe3 {[%clk 0:02:08.3]} 16. Nxe3 {[%clk 0:01:30.5]} 16... Bxb3
{[%clk 0:02:07.4]} 17. axb3 {[%clk 0:01:30]} 17... c6 {[%clk 0:02:07.2]} 18. d4
{[%clk 0:01:26.6]} 18... exd4 {[%clk 0:01:59.8]} 19. cxd4 {[%clk 0:01:16.9]}
19... a6 {[%clk 0:01:59.3]} 20. Rfe1 {[%clk 0:01:09.6]} 20... Rae8 {[%clk
0:01:57.9]} 21. Rad1 {[%clk 0:01:08.3]} 21... Ng5 {[%clk 0:01:55.6]} 22. Qg4
{[%clk 0:01:03.8]} 22... Qxg4 {[%clk 0:01:54.4]} 23. Nxg4 {[%clk 0:01:03.4]}
23... Nxe4 {[%clk 0:01:54.4]} 24. d5 {[%clk 0:01:01.5]} 24... c5 {[%clk
0:01:52.1]} 25. Ne3 {[%clk 0:00:58.9]} 25... f5 {[%clk 0:01:50.4]} 26. Nc4
{[%clk 0:00:56.6]} 26... b5 {[%clk 0:01:33.7]} 27. Na5 {[%clk 0:00:55.4]} 27...
Nf6 {[%clk 0:01:30.2]} 28. Rxe8 {[%clk 0:00:46.6]} 28... Rxe8 {[%clk 0:01:29.5]}
29. Nb7 {[%clk 0:00:47.5]} 29... Re5 {[%clk 0:01:14.5]} 30. Nxd6 {[%clk
0:00:47.1]} 30... Rxd5 {[%clk 0:01:14.5]} 31. Rxd5 {[%clk 0:00:46]} 31... Nxd5
{[%clk 0:01:15]} 32. g3 {[%clk 0:00:45.6]} 32... Kf8 {[%clk 0:01:10.4]} 33. Kf1
{[%clk 0:00:44.6]} 33... Ke7 {[%clk 0:01:10.3]} 34. Nb7 {[%clk 0:00:44.9]} 34...
c4 {[%clk 0:01:08.1]} 35. bxc4 {[%clk 0:00:45]} 35... bxc4 {[%clk 0:01:08.4]}
36. Ke2 {[%clk 0:00:43.6]} 36... c3 {[%clk 0:01:05.2]} 37. bxc3 {[%clk 0:00:43]}
37... Nxc3+ {[%clk 0:01:06.1]} 38. Kd3 {[%clk 0:00:43.4]} 38... Ne4 {[%clk
0:01:06.1]} 39. Ke3 {[%clk 0:00:36.6]} 39... Ke6 {[%clk 0:01:05.4]} 40. g4
{[%clk 0:00:35.3]} 40... Ng5 {[%clk 0:01:02.7]} 41. h4 {[%clk 0:00:32.2]} 41...
Ne4 {[%clk 0:00:58.2]} 42. f3 {[%clk 0:00:29.8]} 42... Nf6 {[%clk 0:00:54.6]}
43. g5 {[%clk 0:00:22.6]} 43... Nd5+ {[%clk 0:00:53.3]} 44. Kd4 {[%clk
0:00:22.9]} 44... Nc7 {[%clk 0:00:49.9]} 45. f4 {[%clk 0:00:14.1]} 45... Nb5+
{[%clk 0:00:30.2]} 46. Kc5 {[%clk 0:00:12.9]} 46... Nc3 {[%clk 0:00:29.3]} 47.
Kd4 {[%clk 0:00:12]} 47... Nb5+ {[%clk 0:00:25.8]} 48. Kc5 {[%clk 0:00:12]}
48... Nc3 {[%clk 0:00:19]} 49. Kd4 {[%clk 0:00:11.7]} 49... Nd5 {[%clk
0:00:19.3]} 50. Nc5+ {[%clk 0:00:10.8]} 50... Kd6 {[%clk 0:00:18.5]} 51. Nxa6
{[%clk 0:00:10.9]} 51... Nxf4 {[%clk 0:00:17.4]} 52. Nc5 {[%clk 0:00:09.2]}
52... Ng2 {[%clk 0:00:16.2]} 53. Nd3 {[%clk 0:00:06.2]} 53... Nxh4 {[%clk
0:00:15.3]} 54. Nf4 {[%clk 0:00:06.5]} 54... Nf3+ {[%clk 0:00:14.5]} 55. Ke3
{[%clk 0:00:06.1]} 55... Nxg5 {[%clk 0:00:14.5]} 56. Nxg6 {[%clk 0:00:06.2]}
56... Ne6 {[%clk 0:00:13.6]} 57. Nh8 {[%clk 0:00:03.8]} 57... Ke5 {[%clk
0:00:12.7]} 58. Ng6+ {[%clk 0:00:03.7]} 58... Kf6 {[%clk 0:00:13]} 59. Nh4
{[%clk 0:00:03.4]} 59... g5 {[%clk 0:00:13.5]} 60. Nf3 {[%clk 0:00:03.6]} 60...
g4 {[%clk 0:00:12.4]} 61. Nd2 {[%clk 0:00:03.1]} 61... Ke5 {[%clk 0:00:12.3]}
62. Nc4+ {[%clk 0:00:02.7]} 62... Kd5 {[%clk 0:00:11.7]} 63. Nb6+ {[%clk
0:00:02.9]} 63... Kc5 {[%clk 0:00:10.1]} 64. Nd7+ {[%clk 0:00:02.8]} 64... Kd6
{[%clk 0:00:09.6]} 65. Nf6 {[%clk 0:00:02.8]} 65... Ke5 {[%clk 0:00:09.4]} 66.
Nh5 {[%clk 0:00:03.1]} 66... f4+ {[%clk 0:00:08.5]} 67. Kf2 {[%clk 0:00:03.4]}
67... Ke4 {[%clk 0:00:06.9]} 68. Ke2 {[%clk 0:00:03.3]} 68... Nd4+ {[%clk
0:00:06.4]} 69. Kf2 {[%clk 0:00:03.2]} 69... Nc6 {[%clk 0:00:05.6]} 70. Nf6+
{[%clk 0:00:02.4]} 70... Kf5 {[%clk 0:00:06]} 71. Nd5 {[%clk 0:00:02.5]} 71...
Ne5 {[%clk 0:00:06.4]} 72. Kg2 {[%clk 0:00:02.1]} 72... f3+ {[%clk 0:00:05.7]}
73. Kg3 {[%clk 0:00:02.4]} 73... Nc4 {[%clk 0:00:05.3]} 74. Ne7+ {[%clk
0:00:01.5]} 74... Kg5 {[%clk 0:00:04.4]} 75. Nd5 {[%clk 0:00:01.3]} 75... Nd2
{[%clk 0:00:04.7]} 0-1